bitfinex/quotes_SOLUSD_20250310
["timestamp","ask_amount","ask_price","bid_price","bid_amount"]
[1741624295524,0.21683911,121.17,121.16,52.44315036]
[1741624295740,0.22280738,121.18,121.17,0.28432314]
[1741624295945,0.22280738,121.18,121.17,42.8763735]
[1741624296251,0.23681573,121.2,121.19,0.28432314]
[1741624296438,0.23681573,121.2,121.19,20.28432314]
[1741624297242,0.23681573,121.2,121.19,148.03710968]
[1741624297866,0.23681573,121.2,121.19,156.28860968]
[1741624298845,0.23681573,121.2,121.19,92.12789327]
[1741624299049,0.23681573,121.2,121.19,92.41221641]
[1741624299253,0.23681573,121.2,121.19,156.28860968]
[1741624300668,1.573e-05,121.2,121.19,156.28860968]
[1741624300850,0.21182957,121.21,121.2,0.28432314]
[1741624301034,0.21182957,121.21,121.2,127.75278654]
[1741624301244,0.21182957,121.21,121.2,63.87639327]
[1741624301837,0.21182957,121.21,121.2,72.12719327]
[1741624302234,0.21182957,121.21,121.2,1.81081857]
[1741624302540,0.21182957,121.21,121.2,73.93801184]
[1741624302768,0.21182957,121.21,121.2,65.68721184]
[1741624302953,0.21182957,121.21,121.2,1.81081857]
[1741624303166,0.21182957,121.21,121.2,65.68721184]
[1741624303471,0.21182957,121.21,121.2,73.93801184]
[1741624303634,0.21182957,121.21,121.2,74.22233498]
[1741624303838,0.21182957,121.21,121.2,73.93801184]
[1741624304061,2.957e-05,121.21,121.2,138.09872825]
[1741624304367,0.063,121.27,121.23,0.28432314]
[1741624304543,0.063,121.27,121.26,63.87639327]
[1741624305162,0.063,121.27,121.25,63.87639327]
[1741624305471,0.063,121.27,121.26,63.87639327]
[1741624305673,0.063,121.27,121.26,72.12309327]
[1741624306344,0.063,121.29,121.26,136.28380968]
[1741624306546,0.063,121.29,121.28,85.71931641]
[1741624306962,0.03,121.3,121.29,0.28432314]
[1741624307167,0.063,121.31,121.29,135.34800312]
[1741624307341,0.063,121.31,121.3,127.75278654]
[1741624307659,0.0001,121.31,121.3,154.93075854]
[1741624307845,0.03,121.36,121.33,38.933972]
[1741624308171,0.21004736,121.36,121.35,63.87639327]
[1741624308965,0.21004736,121.36,121.35,64.16071641]
[1741624309144,0.21004736,121.36,121.35,65.39627227]
[1741624309355,0.21004736,121.36,121.35,147.9223144]
[1741624309659,0.16645726,121.38,121.37,6.65362314]
[1741624309864,0.16423641,121.4,121.38,146.68675854]
[1741624310066,0.16423641,121.4,121.39,63.87639327]
[1741624311652,9.82423641,121.4,121.39,63.87639327]
[1741624311966,9.82423641,121.4,121.39,72.11429327]
[1741624312171,9.82423641,121.4,121.39,63.87639327]
[1741624312468,9.82423641,121.4,121.39,83.87639327]
[1741624313050,0.16423641,121.4,121.39,83.87639327]
[1741624314077,0.16423641,121.4,121.39,92.11429327]
[1741624314566,3.641e-05,121.4,121.39,92.39861641]
[1741624314755,0.03,121.43,121.39,134.87793919]
[1741624314941,0.03,121.43,121.42,63.87639327]
[1741624315143,0.03,121.43,121.42,128.03710968]
[1741624315355,0.03,121.45,121.44,148.03710968]
[1741624315872,0.03,121.5,121.47,0.14216157]
[1741624316171,0.03,121.5,121.49,148.03710968]
[1741624316351,0.03,121.51,121.5,128.03710968]
[1741624316553,0.03,121.51,121.5,127.75278654]
[1741624316750,0.03,121.51,121.47,20.0]
[1741624317065,0.03,121.51,121.5,63.87639327]
[1741624318348,0.03,121.51,121.47,8.2324]
[1741624318665,0.03,121.51,121.5,83.87639327]
[1741624319370,0.03,121.51,121.5,148.03710968]
[1741624319872,0.03,121.51,121.5,155.98318654]
[1741624320569,0.03,121.51,121.5,92.10679327]
[1741624321069,0.03,121.51,121.5,28.2304]
[1741624321247,0.03,121.51,121.5,155.98318654]
[1741624321448,0.0001,121.52,121.51,0.28432314]
[1741624321666,0.03,121.58,121.54,20.0]
[1741624321865,0.03,121.58,121.56,63.87639327]
[1741624322063,18.67964886,121.58,121.54,63.87639327]
[1741624322257,0.14216157,121.57,121.52,63.87639327]
[1741624322446,18.79181043,121.57,121.5,8.2302]
[1741624322669,18.79181043,121.57,121.54,63.87639327]
[1741624322859,18.79181043,121.57,121.53,63.87639327]
[1741624323059,0.14216157,121.57,121.54,63.87639327]
[1741624323276,1.26580426,121.58,121.53,20.0]
[1741624323471,0.03,121.58,121.55,63.87639327]
[1741624323779,0.03,121.58,121.57,72.10209327]
[1741624324150,0.03,121.58,121.57,63.87639327]
[1741624324351,0.03,121.58,121.56,8.2258]
[1741624324352,18.67964886,121.58,121.49,8.37326157]
[1741624324577,9.64,121.57,121.53,20.0]
[1741624324768,9.64,121.57,121.56,42.3547048]
[1741624325749,9.64,121.57,121.56,50.5810048]
[1741624325950,9.64,121.57,121.56,42.3547048]
[1741624326475,9.64,121.57,121.56,135.24070402]
[1741624326681,9.64,121.57,121.56,71.73350201]
[1741624326882,0.03,121.58,121.56,135.24070402]
[1741624327177,0.03,121.58,121.57,63.50720201]
[1741624327785,0.03,121.58,121.57,71.73290201]
[1741624328180,0.20785936,121.58,121.57,71.73290201]
[1741624328382,5.936e-05,121.58,121.57,72.01722515]
[1741624328561,4.847e-05,121.59,121.58,0.28432314]
[1741624328757,4.847e-05,121.59,121.58,63.79152515]
[1741624329059,0.18087288,121.6,121.58,63.79152515]
[1741624329257,0.18087288,121.6,121.59,83.50720201]
[1741624329678,0.18087288,121.6,121.59,20.0]
[1741624330185,0.18087288,121.6,121.58,63.50720201]
[1741624330357,9.64,121.59,121.57,83.50720201]
[1741624330558,9.64,121.59,121.58,63.50720201]
[1741624330757,9.64,121.59,121.58,20.0]
[1741624331377,9.64,121.59,121.58,63.50720201]
[1741624333773,9.64,121.59,121.57,63.50720201]
[1741624334208,9.64,121.59,121.58,63.50720201]
[1741624334378,9.64,121.59,121.53,28.7978]
[1741624334692,9.64,121.59,121.56,63.50720201]
[1741624335292,9.64,121.59,121.53,28.7978]
[1741624335507,9.64,121.59,121.56,63.50720201]
[1741624335793,18.64964886,121.58,121.51,1.5535]
[1741624335999,18.64964886,121.58,121.53,63.50720201]
[1741624336000,82.15685087,121.58,121.53,63.50720201]
[1741624336306,18.64964886,121.58,121.54,63.50720201]
[1741624336485,18.64964886,121.56,121.52,63.50720201]
[1741624336803,82.15685087,121.56,121.51,63.50720201]
[1741624336984,18.64964886,121.54,121.49,63.50720201]
[1741624337296,18.64964886,121.52,121.49,63.50720201]
[1741624337473,9.64,121.53,121.49,63.50720201]
[1741624337872,9.64,121.53,121.5,71.73720201]
[1741624338199,9.64,121.53,121.51,63.50720201]
[1741624338494,9.64,121.53,121.52,63.50720201]
[1741624339584,217.82,121.57,121.52,63.50720201]
[1741624339900,9.64,121.55,121.53,20.0]
[1741624340211,9.64,121.55,121.54,63.50720201]
[1741624340399,9.64,121.55,121.52,8.2288]
[1741624340577,28.28964886,121.55,121.5,8.2304]
[1741624340898,82.15685087,121.54,121.51,20.0]
[1741624341100,70.40442515,121.53,121.47,63.50720201]
[1741624341396,70.40442515,121.53,121.46,8.2331]
[1741624341397,0.28432314,121.5,121.46,63.50720201]
[1741624341575,18.64964886,121.48,121.45,3.67]
[1741624341779,83.39265513,121.48,121.45,3.67]
[1741624341992,18.64964886,121.48,121.45,67.17720201]
[1741624342374,9.64,121.49,121.45,75.41080201]
[1741624342575,17.8711,121.49,121.45,67.17720201]
[1741624342770,9.64,121.49,121.45,67.17720201]
[1741624342984,9.64,121.49,121.46,83.50720201]
[1741624343316,18.64964886,121.48,121.41,20.5909]
[1741624343483,81.37840201,121.49,121.4,8.2372]
[1741624343484,18.64964886,121.46,121.4,8.2372]
[1741624344117,18.64964886,121.46,121.42,63.50720201]
[1741624344601,0.14216157,121.45,121.39,8.3007]
[1741624344901,18.64964886,121.43,121.4,63.50720201]
[1741624345098,18.64964886,121.43,121.39,63.57020201]
[1741624345698,0.14216157,121.42,121.39,0.063]
[1741624345876,18.64964886,121.41,121.39,0.063]
[1741624346904,81.8,121.43,121.39,63.57020201]
[1741624347201,18.64964886,121.43,121.4,63.50720201]
[1741624348694,18.79181043,121.39,121.33,8.3047]
[1741624348882,63.64936358,121.36,121.33,0.063]
[1741624349202,146.68516784,121.36,121.33,0.063]
[1741624349378,145.44936358,121.36,121.33,0.063]
[1741624349706,18.64964886,121.34,121.33,8.3049]
[1741624350002,18.64964886,121.34,121.33,0.063]
[1741624350808,82.44117401,121.34,121.33,0.063]
[1741624350984,90.68247401,121.34,121.33,0.063]
[1741624351180,18.79181043,121.34,121.33,0.063]
[1741624351494,82.44117401,121.34,121.33,0.063]
[1741624351676,90.68247401,121.34,121.33,0.063]
[1741624352078,82.44117401,121.34,121.33,0.063]
[1741624352277,18.79181043,121.34,121.33,0.063]
[1741624352490,28.43181043,121.34,121.33,0.063]
[1741624352882,28.43181043,121.34,121.31,10.05381857]
[1741624353078,9.64,121.34,121.31,10.05381857]
[1741624353282,218.0,121.37,121.33,0.063]
[1741624353587,28.28964886,121.36,121.33,63.57020201]
[1741624353791,9.64,121.35,121.33,63.57020201]
[1741624353988,9.64,121.35,121.33,0.063]
[1741624354592,81.38790201,121.35,121.33,0.063]
[1741624354906,83.67697827,121.34,121.33,0.063]
[1741624355103,82.29901244,121.34,121.33,0.063]
[1741624355402,18.79181043,121.34,121.33,0.063]
[1741624355782,9.64,121.34,121.33,0.063]
[1741624356996,9.64,121.34,121.33,63.57020201]
[1741624357988,218.0,121.37,121.33,63.57020201]
[1741624358304,218.0,121.37,121.36,63.50720201]
[1741624358478,218.0,121.37,121.33,20.6664]
[1741624358479,28.28964886,121.36,121.33,63.57020201]
[1741624358675,18.64964886,121.35,121.33,0.063]
[1741624359478,82.15685087,121.35,121.33,0.063]
[1741624359679,18.64964886,121.35,121.33,0.063]
[1741624360195,90.39795087,121.35,121.33,0.063]
[1741624360398,64.88516784,121.34,121.33,0.063]
[1741624360806,83.67697827,121.34,121.33,0.063]
[1741624361307,130.97697827,121.34,121.33,0.063]
[1741624361497,137.61167827,121.34,121.33,0.063]
[1741624361688,137.61167827,121.34,121.31,1.81081857]
[1741624361689,0.14216157,121.32,121.31,1.81081857]
[1741624361897,20.16977626,121.32,121.31,1.81081857]
[1741624362100,147.18418028,121.32,121.31,1.81081857]
[1741624362288,154.19097602,121.32,121.31,1.81081857]
[1741624362483,0.14216157,121.3,121.26,0.063]
[1741624362684,18.79181043,121.27,121.26,0.063]
[1741624363306,18.64964886,121.28,121.26,20.063]
[1741624363514,18.933972,121.3,121.26,63.57020201]
[1741624363688,9.66,121.27,121.26,63.57020201]
[1741624363887,9.66,121.27,121.26,0.063]
[1741624364204,9.66,121.27,121.26,63.57020201]
[1741624364405,9.66,121.27,121.26,0.063]
[1741624364583,9.66,121.27,121.26,20.063]
[1741624366098,9.66,121.27,121.26,8.3097]
[1741624366408,9.66,121.27,121.26,71.81690201]
[1741624366577,9.66,121.27,121.26,0.063]
[1741624366985,9.66,121.27,121.26,20.063]
[1741624367198,81.55536358,121.27,121.26,0.063]
[1741624367384,18.04816157,121.27,121.26,0.063]
[1741624367821,9.80216157,121.27,121.26,0.063]
[1741624368202,9.9602599,121.27,121.26,0.063]
[1741624368501,9.81809833,121.27,121.26,20.063]
[1741624369089,9.81809833,121.27,121.26,83.57020201]
[1741624369299,9.81809833,121.27,121.26,20.063]
[1741624370513,9.81809833,121.27,121.26,0.063]
[1741624370810,9.81809833,121.27,121.26,8.3097]
[1741624371018,9.81809833,121.27,121.26,91.81690201]
[1741624371220,0.15809833,121.27,121.26,20.063]
[1741624371503,9.81809833,121.27,121.26,83.57020201]
[1741624371710,9.81809833,121.27,121.26,20.063]
[1741624371924,9.81809833,121.27,121.26,83.57020201]
[1741624372126,28.46774719,121.27,121.26,20.063]
[1741624372422,100.36311077,121.27,121.26,0.063]
[1741624372914,28.46774719,121.27,121.26,0.063]
[1741624373398,9.81809833,121.27,121.26,8.3097]
[1741624374101,9.81809833,121.27,121.26,0.063]
[1741624374412,9.81809833,121.27,121.26,20.063]
[1741624375288,9.81809833,121.27,121.26,0.063]
[1741624376187,9.81809833,121.27,121.26,20.063]
[1741624376394,18.2062599,121.27,121.26,0.063]
[1741624377618,9.9602599,121.27,121.26,0.063]
[1741624377838,18.2062599,121.27,121.26,0.063]
[1741624378420,9.9602599,121.27,121.26,0.063]
[1741624378621,18.2062599,121.27,121.26,0.063]
[1741624379420,0.14216157,121.24,121.2,0.063]
[1741624379616,18.64964886,121.22,121.2,0.063]
[1741624379916,28.30964886,121.21,121.2,20.063]
[1741624380289,28.30964886,121.21,121.2,0.063]
[1741624380494,28.30964886,121.21,121.2,20.063]
[1741624380714,28.30964886,121.21,121.2,62.6456084]
[1741624380715,9.66,121.21,121.2,62.6456084]
[1741624381993,9.66,121.21,121.2,0.063]
[1741624382201,28.30964886,121.21,121.2,0.063]
[1741624382800,36.55974886,121.21,121.2,0.063]
[1741624383209,79.4266804,121.21,121.2,0.063]
[1741624383513,80.66248466,121.21,121.2,0.063]
[1741624383729,305.65388466,121.21,121.2,0.063]
[1741624384025,305.65388466,121.21,121.2,0.0001]
[1741624384026,386.2180804,121.21,121.2,0.0001]
[1741624384240,349.0006888,121.21,121.2,0.0001]
[1741624384402,325.83771646,121.21,121.2,0.0001]
[1741624385700,253.585372,121.21,121.2,0.0001]
[1741624386218,325.83771646,121.21,121.2,0.0001]
[1741624386723,391.83996092,121.21,121.2,0.0001]
[1741624386927,18.933972,121.2,121.18,0.063]
[1741624387105,84.17202072,121.19,121.18,0.063]
[1741624387302,86.17202072,121.19,121.18,0.063]
[1741624387623,84.17202072,121.19,121.18,0.063]
[1741624388225,84.17202072,121.19,121.15,0.03]
[1741624388226,18.933972,121.18,121.15,0.03]
[1741624388404,82.79405489,121.16,121.15,0.03]
[1741624388598,36.847472,121.16,121.15,0.03]
[1741624388818,100.84971646,121.16,121.15,0.03]
[1741624389015,28.593972,121.16,121.15,0.03]
[1741624389403,92.59621646,121.16,121.15,0.03]
[1741624389597,100.84971646,121.16,121.15,0.03]
[1741624390121,29.68761469,121.16,121.15,0.03]
[1741624390346,28.45181043,121.16,121.15,0.03]
[1741624390512,100.84971646,121.16,121.15,0.03]
[1741624390898,102.08552072,121.16,121.15,0.03]
[1741624392838,28.45181043,121.16,121.15,0.03]
[1741624393202,18.64964886,121.16,121.15,0.03]
[1741624393409,28.30964886,121.16,121.15,0.03]
[1741624393639,28.45181043,121.16,121.15,0.03]
[1741624394126,9.66,121.16,121.15,0.03]
[1741624394514,28.30964886,121.16,121.15,0.03]
[1741624394721,100.84971646,121.16,121.15,0.03]
[1741624394936,229.94971646,121.16,121.15,0.03]
[1741624395141,165.947472,121.16,121.15,0.03]
[1741624395324,229.94971646,121.16,121.15,0.03]
[1741624395641,182.64971646,121.16,121.15,0.03]
[1741624395955,100.84971646,121.16,121.15,0.03]
[1741624396249,29.82977626,121.16,121.15,0.03]
[1741624396548,9.66,121.16,121.15,64.03224446]
[1741624396748,18.80546955,121.19,121.15,64.03224446]
[1741624396911,9.66,121.17,121.16,20.0]
[1741624397238,9.66,121.17,121.15,1.6643]
[1741624397545,9.66,121.17,121.16,64.00224446]
[1741624398141,9.66,121.17,121.16,20.0]
[1741624398434,9.66,121.17,121.16,84.00224446]
[1741624399238,0.15582069,121.19,121.16,84.00224446]
[1741624399406,0.15582069,121.19,121.18,84.00224446]
[1741624400046,0.15582069,121.19,121.18,20.0]
[1741624400810,18.94763112,121.19,121.17,20.0]
[1741624401347,27.19913112,121.19,121.17,20.0]
[1741624401540,27.19913112,121.19,121.15,65.66654446]
[1741624401753,27.19913112,121.19,121.15,0.03]
[1741624401934,18.64964886,121.17,121.16,20.0]
[1741624402136,0.29798226,121.19,121.16,84.00224446]
[1741624402448,18.64964886,121.18,121.16,84.00224446]
[1741624402643,18.64964886,121.18,121.16,20.0]
[1741624403663,0.15582069,121.19,121.15,0.03]
[1741624403968,19.08979269,121.19,121.17,20.0]
[1741624404129,27.34149269,121.19,121.15,0.03]
[1741624404332,0.14216157,121.17,121.15,0.03]
[1741624404539,18.933972,121.17,121.15,0.03]
[1741624404841,0.28432314,121.17,121.15,0.03]
[1741624405044,18.64964886,121.18,121.16,42.65874103]
[1741624405435,8.54968226,121.19,121.15,42.68874103]
[1741624405436,28.43513538,121.19,121.15,42.68874103]
[1741624405637,18.79181043,121.18,121.15,20.03]
[1741624405854,18.933972,121.16,121.15,0.03]
[1741624406061,18.64964886,121.16,121.15,0.03]
[1741624406259,51.20872329,121.19,121.15,0.03]
[1741624406561,9.66,121.18,121.15,62.68874103]
[1741624406764,18.933972,121.17,121.15,20.03]
[1741624406965,62.82851729,121.17,121.15,0.03]
[1741624407134,218.56,121.18,121.16,42.65874103]
[1741624407334,9.66,121.17,121.16,42.65874103]
[1741624407839,28.30964886,121.17,121.15,20.03]
[1741624408040,18.64964886,121.16,121.15,0.03]
[1741624408337,18.79181043,121.16,121.15,0.03]
[1741624408953,18.933972,121.16,121.15,0.03]
[1741624409153,61.59271303,121.16,121.15,0.03]
[1741624409555,108.89271303,121.16,121.15,0.03]
[1741624409753,63.59271303,121.16,121.15,0.03]
[1741624409963,0.28432314,121.15,121.13,0.063]
[1741624410153,71.08341729,121.14,121.13,0.063]
[1741624410353,28.42467626,121.14,121.13,0.063]
[1741624410649,20.16977626,121.14,121.13,0.063]
[1741624410856,71.08341729,121.14,121.13,0.063]
[1741624411348,28.42467626,121.14,121.13,0.063]
[1741624411681,11.04771757,121.17,121.13,42.72174103]
[1741624411843,11.04771757,121.17,121.14,42.65874103]
[1741624411844,0.14216157,121.16,121.14,42.65874103]
[1741624412375,9.81191331,121.17,121.15,42.65874103]
[1741624412664,0.15191331,121.17,121.16,20.0]
[1741624412882,18.64964886,121.16,121.14,1.5366]
[1741624413039,18.64964886,121.16,121.14,44.12766231]
[1741624413244,18.64964886,121.16,121.14,42.65874103]
[1741624413558,18.64964886,121.16,121.13,0.063]
[1741624413559,18.64964886,121.16,121.15,42.65874103]
[1741624413760,18.64964886,121.16,121.14,42.65874103]
[1741624413945,18.64964886,121.16,121.13,8.3185]
[1741624414147,18.64964886,121.16,121.14,42.65874103]
[1741624414352,9.81191331,121.17,121.15,42.65874103]
[1741624414547,9.81191331,121.17,121.16,62.65874103]
[1741624414858,9.81191331,121.17,121.16,42.65874103]
[1741624415849,9.81191331,121.17,121.15,42.65874103]
[1741624416252,9.81191331,121.17,121.16,62.65874103]
[1741624416461,0.15191331,121.17,121.16,62.65874103]
[1741624416974,0.17871734,121.19,121.18,6.0338]
[1741624417143,0.17148347,121.21,121.2,20.0]
[1741624417465,0.17148347,121.21,121.2,105.6018052]
[1741624417649,0.17240985,121.24,121.2,105.31748206]
[1741624417856,0.17240985,121.24,121.21,42.65874103]
[1741624418042,9.83240985,121.24,121.21,42.65874103]
[1741624418443,2.311e-05,121.23,121.22,62.94306417]
[1741624418663,0.19475716,121.26,121.23,1.5056]
[1741624418866,0.19475716,121.26,121.25,42.65874103]
[1741624420058,0.19475716,121.26,121.24,20.0]
[1741624420259,0.19475716,121.26,121.25,42.65874103]
[1741624420458,0.19475716,121.26,121.25,50.90614103]
[1741624420963,9.85475716,121.26,121.25,42.65874103]
[1741624421169,0.19475716,121.26,121.25,50.90614103]
[1741624421374,0.19475716,121.26,121.25,93.56488206]
[1741624421873,0.19475716,121.26,121.25,50.90614103]
[1741624422060,0.03,121.31,121.28,20.0]
[1741624422262,0.03,121.31,121.26,1.99997436]
[1741624422263,0.03,121.31,121.3,85.31748206]
[1741624422458,9.69,121.34,121.33,28.2419]
[1741624422768,9.69,121.34,121.33,70.90064103]
[1741624422769,0.03,121.34,121.33,70.90064103]
[1741624423073,0.03,121.39,121.34,2.2842975]
[1741624423252,0.03,121.39,121.38,85.31748206]
[1741624424277,0.03,121.39,121.38,85.6018052]
[1741624424582,0.03,121.39,121.38,93.8403052]
[1741624424766,0.03,121.39,121.38,93.55598206]
[1741624424951,0.03,121.39,121.38,85.31748206]
[1741624425569,0.03,121.39,121.38,42.65874103]
[1741624425746,0.03,121.39,121.38,93.55598206]
[1741624426260,0.03,121.39,121.38,135.64463476]
[1741624426459,0.03,121.39,121.38,71.94156738]
[1741624426854,0.03,121.39,121.38,135.64463476]
[1741624427054,0.03,121.39,121.38,127.40613476]
[1741624427255,0.03,121.39,121.38,63.70306738]
[1741624427456,0.03,121.39,121.33,1.23555399]
[1741624427666,0.03,121.39,121.37,63.70306738]
[1741624427914,0.17216157,121.39,121.35,63.70306738]
[1741624428091,0.17216157,121.39,121.36,63.70306738]
[1741624428296,0.19671346,121.39,121.37,63.70306738]
[1741624428875,0.19671346,121.39,121.36,63.70306738]
[1741624428876,8.43461346,121.39,121.36,63.70306738]
[1741624429174,18.64964886,121.38,121.35,83.70306738]
[1741624429383,0.19671346,121.39,121.36,63.70306738]
[1741624429583,0.19671346,121.39,121.38,63.70306738]
[1741624430471,0.19671346,121.39,121.38,127.40613476]
[1741624430673,0.19671346,121.39,121.38,63.70306738]
[1741624431079,0.19671346,121.39,121.35,20.0]
[1741624431272,0.19671346,121.39,121.35,71.94346738]
[1741624431482,0.19671346,121.39,121.36,63.70306738]
[1741624431682,0.19671346,121.39,121.37,83.70306738]
[1741624431890,0.19671346,121.39,121.38,63.70306738]
[1741624432880,0.19671346,121.39,121.38,71.94156738]
[1741624434167,0.19671346,121.39,121.36,8.2399]
[1741624434451,0.19671346,121.39,121.38,83.70306738]
[1741624434979,0.19671346,121.39,121.38,91.94156738]
[1741624437763,1.346e-05,121.39,121.38,155.9289579]
[1741624437991,1.346e-05,121.39,121.38,155.64463476]
[1741624438594,1.346e-05,121.39,121.38,155.9289579]
[1741624439183,1.346e-05,121.39,121.38,71.94156738]
[1741624439990,1.346e-05,121.39,121.38,135.9289579]
[1741624440161,1.346e-05,121.39,121.38,135.64463476]
[1741624440369,1.346e-05,121.39,121.38,71.94156738]
[1741624440564,1.346e-05,121.39,121.38,135.64463476]
[1741624440876,4.945e-05,121.4,121.38,135.64463476]
[1741624441071,4.945e-05,121.4,121.39,63.70306738]
[1741624442965,4.945e-05,121.4,121.39,71.94096738]
[1741624444080,7.135e-05,121.41,121.39,71.94096738]
[1741624444275,6.897e-05,121.42,121.4,65.35716738]
[1741624444473,6.897e-05,121.42,121.41,83.70306738]
[1741624444683,2.937e-05,121.44,121.42,0.28432314]
[1741624444879,0.1772127,121.45,121.44,6.30132314]
[1741624444880,4.207e-05,121.45,121.44,6.30132314]
[1741624445078,0.15537519,121.46,121.44,6.30132314]
[1741624445079,1.344e-05,121.48,121.47,20.0]
[1741624445489,1.344e-05,121.48,121.44,71.93756738]
[1741624445785,1.344e-05,121.48,121.44,8.2345]
[1741624445998,1.344e-05,121.48,121.47,83.70306738]
[1741624446174,9.62001344,121.48,121.47,83.70306738]
[1741624446370,9.62001344,121.48,121.47,20.0]
[1741624446792,9.62001344,121.48,121.47,62.42304746]
[1741624447199,9.62001344,121.48,121.47,70.65544746]
[1741624447375,9.62001344,121.48,121.47,62.42304746]
[1741624447576,9.62001344,121.48,121.47,70.65544746]
[1741624447980,9.62001344,121.48,121.47,62.42304746]
[1741624448299,9.79298726,121.48,121.47,20.0]
[1741624448485,9.79298726,121.48,121.47,62.42304746]
[1741624448889,9.79297382,121.48,121.47,62.42304746]
[1741624449273,0.17297382,121.48,121.47,70.65544746]
[1741624454483,7.382e-05,121.48,121.47,70.65544746]
[1741624454802,5.797e-05,121.5,121.48,0.28432314]
[1741624454979,5.797e-05,121.5,121.49,85.13041806]
[1741624455179,0.20136417,121.52,121.51,28.51402314]
[1741624455180,3.719e-05,121.52,121.51,28.51402314]
[1741624455380,5.077e-05,121.53,121.51,70.9370706]
[1741624455585,5.077e-05,121.53,121.52,42.42304746]
[1741624456400,6.26e-05,121.54,121.52,42.7073706]
[1741624456593,6.26e-05,121.54,121.53,62.42304746]
[1741624457124,6.26e-05,121.54,121.53,42.42304746]
[1741624457277,6.26e-05,121.54,121.53,50.65144746]
[1741624457480,6.26e-05,121.54,121.53,50.9357706]
[1741624457691,3.511e-05,121.55,121.53,93.35881806]
[1741624457921,3.511e-05,121.55,121.54,84.84609492]
[1741624458100,3.511e-05,121.55,121.54,42.42304746]
[1741624459176,3.511e-05,121.55,121.52,28.801]
[1741624459394,3.511e-05,121.55,121.54,62.42304746]
[1741624459686,3.511e-05,121.55,121.52,42.42304746]
[1741624459887,3.511e-05,121.55,121.53,42.42304746]
[1741624460202,3.511e-05,121.55,121.52,42.42304746]
[1741624460504,0.28435825,121.55,121.5,42.42304746]
[1741624460703,18.64964886,121.53,121.49,42.42304746]
[1741624460899,9.62,121.52,121.5,42.42304746]
[1741624461201,9.62,121.52,121.51,42.42304746]
[1741624461412,9.62,121.52,121.5,42.42304746]
[1741624462082,9.62,121.52,121.51,42.42304746]
[1741624462909,9.62,121.52,121.51,20.0]
[1741624463206,9.62,121.52,121.51,62.42304746]
[1741624463583,9.62,121.52,121.5,42.42304746]
[1741624463781,3.511e-05,121.55,121.51,42.42304746]
[1741624464109,3.511e-05,121.55,121.54,42.42304746]
[1741624464305,9.62003511,121.55,121.53,42.42304746]
[1741624464497,17.84713511,121.55,121.49,8.2308]
[1741624464699,9.62003511,121.55,121.52,42.42304746]
[1741624464884,9.62003511,121.55,121.51,42.42304746]
[1741624465086,19.08293937,121.55,121.51,42.42304746]
[1741624465281,8.37006157,121.54,121.5,42.42304746]
[1741624465486,18.64964886,121.53,121.49,42.42304746]
[1741624465791,3.511e-05,121.55,121.52,42.42304746]
[1741624465986,9.62,121.54,121.53,42.42304746]
[1741624466399,9.62,121.54,121.52,42.42304746]
[1741624466796,28.26964886,121.54,121.48,28.8107]
[1741624466984,18.64964886,121.53,121.5,42.42304746]
[1741624469707,9.62,121.49,121.46,42.42304746]
[1741624469893,9.62,121.49,121.48,42.42304746]
[1741624470094,28.26964886,121.49,121.48,42.42304746]
[1741624470410,28.26964886,121.49,121.47,42.42304746]
[1741624470707,9.62,121.49,121.44,42.42304746]
[1741624470910,28.26964886,121.49,121.47,42.42304746]
[1741624471106,9.62,121.49,121.47,42.42304746]
[1741624471294,9.62,121.49,121.48,42.42304746]
[1741624471494,9.62,121.49,121.48,50.65484746]
[1741624471695,0.14950311,121.51,121.48,42.42304746]
[1741624471894,9.62,121.5,121.49,42.42304746]
[1741624472095,9.62,121.5,121.48,42.42304746]
[1741624472296,9.62,121.5,121.49,42.42304746]
[1741624472701,9.62,121.5,121.47,8.2324]
[1741624472933,9.62,121.5,121.49,42.42304746]
[1741624473808,9.62,121.5,121.48,42.42304746]
[1741624474618,9.62,121.5,121.47,42.42304746]
[1741624475203,18.64964886,121.49,121.46,8.2331]
[1741624475390,0.14216157,121.48,121.42,28.8254]
[1741624475594,0.14216157,121.48,121.44,42.42304746]